bitfinex-derivatives/quotes_BNBF0:USTF0_20250603
["timestamp","ask_amount","ask_price","bid_price","bid_amount"]
[1748982917002,1.06130808,659.55,659.06,0.3034625]
[1748982917296,1.06130808,659.54,659.06,0.3034625]
[1748982917501,1.11294198,659.78,659.06,0.3034625]
[1748982917698,1.47866425,659.91,659.06,0.3034625]
[1748982917901,1.11386334,659.77,659.06,0.3034625]
[1748982918095,1.06321229,659.76,659.06,0.3034625]
[1748982918300,1.06321229,659.75,659.06,0.3034625]
[1748982918495,1.06321229,659.74,659.06,0.3034625]
[1748982918699,1.06321229,659.73,659.06,0.3034625]
[1748982918901,1.06321229,659.72,659.06,0.3034625]
[1748982919102,1.06321229,659.71,659.06,0.3034625]
[1748982919299,1.06321229,659.7,659.06,0.3034625]
[1748982919605,1.06321229,659.69,659.06,0.3034625]
[1748982919800,1.06321229,659.68,659.06,0.3034625]
[1748982919997,1.06321229,659.67,659.06,0.3034625]
[1748982920200,1.06321229,659.66,659.06,0.3034625]
[1748982920397,1.06321229,659.65,659.06,0.3034625]
[1748982920605,1.06321229,659.64,659.06,0.3034625]
[1748982920804,1.06321229,659.63,659.06,0.3034625]
[1748982921003,1.11386334,659.77,659.06,0.3034625]
[1748982921004,1.06321229,659.62,659.06,0.3034625]
[1748982921201,1.06321229,659.61,659.06,0.3034625]
[1748982921401,1.06321229,659.6,659.06,0.3034625]
[1748982921604,1.47866425,659.92,659.06,0.3034625]
[1748982921805,1.11461706,659.77,659.06,0.3034625]
[1748982922103,1.06416942,659.76,659.06,0.3034625]
[1748982922403,1.06416942,659.75,659.06,0.3034625]
[1748982922702,1.06416942,659.74,659.06,0.3034625]
[1748982922895,1.11461706,659.78,659.06,0.3034625]
[1748982922896,1.06416942,659.73,659.06,0.3034625]
[1748982923100,1.06416942,659.72,659.06,0.3034625]
[1748982923301,1.06416942,659.71,659.06,0.3034625]
[1748982923500,1.06416942,659.7,659.06,0.3034625]
[1748982923698,1.06416942,659.69,659.06,0.3034625]
[1748982923903,1.06416942,659.68,659.06,0.3034625]
[1748982924203,1.06416942,659.67,659.06,0.3034625]
[1748982924396,1.06416942,659.66,659.06,0.3034625]
[1748982924597,1.47866425,659.94,659.06,0.3034625]
[1748982924598,1.06416942,659.65,659.06,0.3034625]
[1748982924800,1.06416942,659.64,659.06,0.3034625]
[1748982924999,1.06416942,659.63,659.06,0.3034625]
[1748982925203,1.06416942,659.62,659.06,0.3034625]
[1748982925398,1.06416942,659.61,659.06,0.3034625]
[1748982925704,1.06354267,659.6,659.06,0.3034625]
[1748982925900,1.06354267,659.59,659.06,0.3034625]
[1748982926097,1.06354267,659.58,659.06,0.3034625]
[1748982926300,1.06347703,659.57,659.06,0.3034625]
[1748982926504,1.06347703,659.56,659.06,0.3034625]
[1748982926701,1.06347703,659.55,659.06,0.3034625]
[1748982926902,1.11420713,659.8,659.06,0.3034625]
[1748982927103,1.06337248,659.79,659.06,0.3034625]
[1748982927305,1.06337248,659.78,659.06,0.3034625]
[1748982927504,1.06337248,659.77,659.06,0.3034625]
[1748982927700,1.06337248,659.76,659.06,0.3034625]
[1748982927901,1.06337248,659.75,659.06,0.3034625]
[1748982928105,1.06337248,659.74,659.06,0.3034625]
[1748982928401,1.06337248,659.73,659.06,0.3034625]
[1748982928602,1.06337248,659.72,659.06,0.3034625]
[1748982928806,1.06337248,659.71,659.06,0.3034625]
[1748982929005,1.06337248,659.7,659.06,0.3034625]
[1748982929202,1.06337248,659.69,659.06,0.78180458]
[1748982929409,1.06337248,659.68,659.06,0.78180458]
[1748982929610,1.0643287,659.67,659.06,0.78180458]
[1748982929809,1.0643287,659.66,659.07,0.47834208]
[1748982930109,1.0643287,659.66,659.06,0.3034625]
[1748982930110,1.0643287,659.65,659.09,0.47834208]
[1748982930310,1.0643287,659.64,659.1,0.30344409]
[1748982930509,1.0643287,659.63,659.1,0.30344409]
[1748982930710,1.0643287,659.62,659.1,0.30344409]
[1748982930913,1.0643287,659.61,659.1,0.30344409]
[1748982931110,1.0643287,659.6,659.1,0.30344409]
[1748982931310,3.68209165,660.52,659.1,0.30344409]
[1748982931311,1.0643287,659.59,659.1,0.30344409]
[1748982931510,1.11388764,659.81,659.1,0.30344409]
[1748982931709,1.06408178,659.8,659.1,0.30344409]
[1748982931907,1.06408178,659.79,659.1,0.30344409]
[1748982932108,3.68209165,660.63,659.1,0.30344409]
[1748982932109,1.06408178,659.78,659.1,0.30344409]
[1748982932308,1.06408178,659.77,659.1,0.30344409]
[1748982932508,1.06408178,659.76,659.1,0.30344409]
[1748982932709,1.06408178,659.75,659.1,0.30344409]
[1748982932914,1.06408178,659.74,659.1,0.30344409]
[1748982933213,1.06408178,659.73,659.1,0.30344409]
[1748982933516,1.05761589,659.72,659.1,0.78178617]
[1748982933709,1.05761589,659.71,659.11,0.47834208]
[1748982933908,1.05761589,659.7,659.12,0.30343488]
[1748982934116,1.05761589,659.69,659.13,0.47834208]
[1748982934305,1.05761589,659.68,659.14,0.30342567]
[1748982934511,1.11370357,659.92,659.14,0.30342567]
[1748982934711,1.05561538,659.91,659.14,0.30342567]
[1748982934911,1.05561538,659.9,659.14,0.30342567]
[1748982935109,1.05561538,659.89,659.14,0.30342567]
[1748982935308,1.11370357,659.92,659.14,0.30342567]
[1748982935309,1.05561538,659.88,659.14,0.30342567]
[1748982935512,1.05561538,659.87,659.14,0.30342567]
[1748982935710,1.05561538,659.86,659.14,0.30342567]
[1748982935912,1.05561538,659.85,659.14,0.30342567]
[1748982936111,1.05561538,659.84,659.14,0.30342567]
[1748982936312,1.05561538,659.83,659.14,0.30342567]
[1748982936515,1.05561538,659.82,659.14,0.30342567]
[1748982936712,1.05561538,659.81,659.14,0.30342567]
[1748982936912,1.05561538,659.8,659.14,0.30342567]
[1748982937115,1.05565447,659.79,659.14,0.30342567]
[1748982937318,1.05565447,659.78,659.14,0.30342567]
[1748982937517,1.05565447,659.77,659.14,0.30342567]
[1748982937712,1.05565447,659.76,659.14,0.30342567]
[1748982937912,1.11317621,660.07,659.14,0.30342567]
[1748982938118,1.05552094,660.06,659.14,0.30342567]
[1748982938419,1.05552094,660.05,659.14,0.30342567]
[1748982938617,1.05552094,660.04,659.14,0.30342567]
[1748982938914,1.05552094,660.03,659.14,0.30342567]
[1748982939118,1.05552094,660.02,659.14,0.30342567]
[1748982939315,1.05552094,660.01,659.14,0.30342567]
[1748982939619,1.05552094,660.0,659.14,0.30342567]
[1748982939913,1.11317621,660.09,659.14,0.30342567]
[1748982939914,1.05552094,659.99,659.14,0.30342567]
[1748982940221,1.05552094,659.98,659.14,0.30342567]
[1748982940414,1.05552094,659.97,659.14,0.30342567]
[1748982940614,1.05552094,659.96,659.14,0.30342567]
[1748982940914,1.05552094,659.95,659.14,0.30342567]
[1748982941119,1.05552094,659.94,659.14,0.30342567]
[1748982941319,1.05552094,659.93,659.14,0.30342567]
[1748982941620,1.05552094,659.92,659.14,0.30342567]
[1748982941817,1.05552094,659.91,659.14,0.30342567]
[1748982942017,1.05552094,659.9,659.14,0.30342567]
[1748982942218,1.05552094,659.89,659.14,0.30342567]
[1748982942419,1.05552094,659.88,659.14,0.30342567]
[1748982942620,1.05552094,659.87,659.14,0.30342567]
[1748982942819,1.05552094,659.86,659.14,0.30342567]
[1748982943019,1.05552094,659.85,659.14,0.30342567]
[1748982943319,1.05552094,659.84,659.14,0.30342567]
[1748982943521,1.05407813,659.83,659.14,0.30342567]
[1748982943721,1.11317621,660.12,659.14,0.30342567]
[1748982943922,1.05411239,660.11,659.14,0.30342567]
[1748982944124,1.05411239,660.1,659.14,0.30342567]
[1748982944422,2.1672886,660.09,659.17,0.47834208]
[1748982944622,1.47866425,660.23,659.19,0.30340266]
[1748982944822,1.11140018,660.09,659.19,0.30340266]
[1748982945118,1.05398345,660.08,659.19,0.30340266]
[1748982945322,1.05398345,660.07,659.25,0.47834208]
[1748982945516,1.05398345,660.06,659.27,0.30336584]
[1748982945722,1.11140018,660.07,659.27,0.30336584]
[1748982945723,1.05398345,660.05,659.27,0.30336584]
[1748982945916,3.68209165,660.85,659.27,0.30336584]
[1748982945917,1.05398345,660.04,659.3,0.47834208]
[1748982946222,1.05398345,660.03,659.31,0.30334743]
[1748982946423,1.05398345,660.02,659.31,0.30334743]
[1748982946623,1.05398345,660.01,659.31,0.30334743]
[1748982946824,1.05398345,660.0,659.31,0.30334743]
[1748982947118,1.05398345,659.99,659.31,0.30334743]
[1748982947324,1.05398345,659.98,659.31,0.30334743]
[1748982947523,1.05398345,659.97,659.31,0.30334743]
[1748982947824,1.05398345,659.96,659.33,0.47834208]
[1748982948021,1.05398345,659.95,659.34,0.30333363]
[1748982948217,1.05398345,659.94,659.34,0.30333363]
[1748982948419,2.20925499,660.34,659.34,0.78167571]
[1748982948626,1.11109448,660.1,659.34,0.30333363]
[1748982948921,1.05423083,660.09,659.34,0.30333363]
[1748982949119,1.05423083,660.08,659.34,0.30333363]
[1748982949324,1.05423083,660.07,659.34,0.30333363]
[1748982949521,1.05423083,660.06,659.34,0.30333363]
[1748982949726,1.05423083,660.05,659.34,0.30333363]
[1748982949921,1.05423083,660.04,659.34,0.30333363]
[1748982950127,1.05423083,660.03,659.34,0.30333363]
[1748982950320,1.05423083,660.02,659.34,0.30333363]
[1748982950525,1.05423083,660.01,659.34,0.30333363]
[1748982950727,1.05423083,660.0,659.34,0.30333363]
[1748982950926,1.05423083,659.99,659.34,0.30333363]
[1748982951121,1.05423083,659.98,659.34,0.30333363]
[1748982951321,1.05423083,659.97,659.34,0.30333363]
[1748982951526,1.05423083,659.96,659.34,0.30333363]
[1748982951727,1.05423083,659.95,659.34,0.30333363]
[1748982951920,1.11109448,660.06,659.34,0.30333363]
[1748982951921,1.05423083,659.94,659.34,0.30333363]
[1748982952124,1.05423083,659.93,659.34,0.30333363]
[1748982952426,1.05402743,659.92,659.34,0.30333363]
[1748982952628,1.05402743,659.91,659.34,0.30333363]
[1748982952927,1.05402743,659.9,659.34,0.30333363]
[1748982953127,1.05402743,659.89,659.34,0.30333363]
[1748982953327,1.05402743,659.88,659.34,0.30333363]
[1748982953523,1.05402743,659.87,659.34,0.30333363]
[1748982953728,1.05402743,659.86,659.34,0.30333363]
[1748982953931,1.05402743,659.85,659.34,0.30333363]
[1748982954230,1.11082703,660.09,659.34,0.30333363]
[1748982954421,1.05424168,660.08,659.34,0.30333363]
[1748982954622,1.05424168,660.07,659.34,0.30333363]
[1748982954825,1.05424168,660.06,659.34,0.30333363]
[1748982955026,1.05424168,660.05,659.34,0.30333363]
[1748982955226,1.05424168,660.04,659.34,0.30333363]
[1748982955422,1.05424168,660.03,659.34,0.30333363]
[1748982955626,1.05424168,660.02,659.34,0.30333363]
[1748982955827,1.05424168,660.01,659.34,0.30333363]
[1748982956028,1.05424168,660.0,659.34,0.30333363]
[1748982956227,1.05424168,659.99,659.34,0.30333363]
[1748982956428,1.05419447,659.98,659.34,0.30333363]
[1748982956728,1.05419447,659.97,659.34,0.30333363]
[1748982957028,1.05419447,659.96,659.34,0.30333363]
[1748982957226,1.05419447,659.95,659.34,0.30333363]
[1748982957426,1.11085129,660.17,659.34,0.30333363]
[1748982957427,1.05419447,659.94,659.34,0.30333363]
[1748982957624,1.05419447,659.93,659.34,0.30333363]
[1748982957823,1.05419447,659.92,659.34,0.30333363]
[1748982958029,1.05419447,659.91,659.34,0.30333363]
[1748982958327,1.05419447,659.9,659.34,0.30333363]
[1748982958525,1.05419447,659.89,659.34,0.30333363]
[1748982958830,1.05419447,659.88,659.34,0.30333363]
[1748982959030,1.05419447,659.87,659.34,0.30333363]
[1748982959225,1.05419447,659.86,659.34,0.30333363]
[1748982959423,1.11085129,660.17,659.34,0.30333363]
[1748982959424,1.05419447,659.85,659.34,0.30333363]
[1748982959628,1.05419447,659.84,659.34,0.30333363]
[1748982959824,1.11085129,660.17,659.34,0.30333363]
[1748982960126,1.05405777,660.16,659.34,0.30333363]
[1748982960329,1.05405401,660.15,659.34,0.30333363]
[1748982960630,1.05405401,660.14,659.34,0.30333363]
[1748982960830,1.05405401,660.13,659.34,0.30333363]
[1748982961026,1.05405401,660.12,659.34,0.30333363]
[1748982961223,1.05405401,660.11,659.34,0.30333363]
[1748982961530,1.05405401,660.1,659.34,0.30333363]
[1748982961730,1.05405401,660.09,659.34,0.30333363]
[1748982961927,1.05405401,660.08,659.34,0.30333363]
[1748982962130,1.11079701,660.14,659.34,0.30333363]
[1748982962131,1.05405401,660.07,659.34,0.30333363]
[1748982962325,1.05405401,660.06,659.34,0.30333363]
[1748982962525,1.4814593,660.33,659.34,0.30333363]
[1748982962731,1.11084108,660.14,659.34,0.30333363]
[1748982962932,2.16493332,660.13,659.34,0.30333363]
[1748982963134,1.05409224,660.12,659.34,0.30333363]
[1748982963431,1.05409224,660.11,659.34,0.30333363]
[1748982963626,1.11084108,660.14,659.34,0.30333363]
[1748982963627,1.05409224,660.1,659.34,0.30333363]
[1748982963830,1.05409224,660.09,659.34,0.30333363]
[1748982964032,1.05409224,660.08,659.34,0.30333363]
[1748982964232,1.05409224,660.07,659.34,0.30333363]
[1748982964533,1.11084108,660.16,659.34,0.30333363]
[1748982964534,1.05409224,660.06,659.34,0.30333363]
[1748982964730,1.05409224,660.05,659.34,0.30333363]
[1748982964930,1.05409224,660.04,659.34,0.30333363]
[1748982965129,1.05409224,660.03,659.34,0.30333363]
[1748982965329,1.05409224,660.02,659.34,0.30333363]
[1748982965532,1.05409224,660.01,659.34,0.30333363]
[1748982965732,1.05409224,660.0,659.34,0.30333363]
[1748982965932,1.4814593,660.4,659.34,0.30333363]
[1748982965933,1.05409224,659.99,659.34,0.30333363]
[1748982966129,1.05409224,659.98,659.34,0.30333363]
[1748982966330,1.4814593,660.4,659.34,0.30333363]
[1748982966530,1.11138821,660.24,659.34,0.30333363]
[1748982966729,2.16513763,660.23,659.34,0.30333363]
[1748982966929,1.05374942,660.22,659.34,0.30333363]
[1748982967231,1.05374942,660.21,659.34,0.30333363]
[1748982967430,1.05374942,660.2,659.34,0.30333363]
[1748982967632,1.05374942,660.19,659.34,0.30333363]
[1748982967831,1.05374942,660.18,659.34,0.30333363]
[1748982968033,1.05374942,660.17,659.34,0.30333363]
[1748982968231,1.05374942,660.16,659.34,0.30333363]
[1748982968434,1.05374942,660.15,659.34,0.30333363]
[1748982968731,1.4814593,660.45,659.34,0.30333363]
[1748982968732,1.05374942,660.14,659.34,0.30333363]
[1748982968928,1.05374942,660.13,659.34,0.30333363]
[1748982969134,1.05374942,660.12,659.34,0.30333363]
[1748982969334,3.68209165,661.47,659.34,0.30333363]
[1748982969335,1.05374942,660.11,659.34,0.30333363]
[1748982969536,1.11138821,660.3,659.34,0.30333363]
[1748982969537,1.05374942,660.1,659.34,0.30333363]
[1748982969735,1.05374942,660.09,659.34,0.30333363]
[1748982969937,1.05374942,660.08,659.34,0.30333363]
[1748982970140,1.04732432,660.07,659.34,0.30333363]
[1748982970336,1.04732432,660.06,659.34,0.30333363]
[1748982970537,3.68209165,661.48,659.34,0.30333363]
[1748982970538,1.04732432,660.05,659.34,0.30333363]
[1748982970739,1.04732432,660.04,659.34,0.30333363]
[1748982970941,1.11194382,660.28,659.34,0.30333363]
[1748982970942,1.04732432,660.03,659.34,0.30333363]
[1748982971141,1.04732432,660.02,659.34,0.30333363]
[1748982971342,1.04732432,660.01,659.34,0.30333363]
[1748982971541,3.68209165,661.4,659.34,0.30333363]
[1748982971542,1.04732432,660.0,659.43,0.47834208]
[1748982971739,1.04732432,659.99,659.44,0.30328763]
[1748982971942,1.11194382,660.21,659.44,0.30328763]
[1748982971943,1.04732432,659.98,659.44,0.30328763]
[1748982972141,1.04732432,659.97,659.44,0.30328763]
[1748982972339,1.11194382,660.21,659.44,0.30328763]
[1748982972539,1.04774708,660.2,659.44,0.30328763]
[1748982972742,1.04774708,660.19,659.44,0.30328763]
[1748982972943,1.04774708,660.18,659.44,0.30328763]
[1748982973145,1.04774708,660.17,659.44,0.30328763]
[1748982973447,1.04774708,660.16,659.49,0.47834208]
[1748982973747,1.04774708,660.15,659.5,0.30326004]
[1748982974044,1.04885779,660.14,659.5,0.30326004]
[1748982974245,1.04885779,660.13,659.5,0.30326004]
[1748982974441,1.04885779,660.12,659.5,0.78160212]
[1748982974640,1.04885779,660.11,659.5,0.78160212]
[1748982974845,1.04885779,660.1,659.51,0.47834208]
[1748982975045,1.04885779,660.09,659.52,0.30325084]
[1748982975245,1.04885779,660.08,659.52,0.30325084]
[1748982975544,1.04885779,660.07,659.52,0.30325084]
[1748982975742,1.4814593,660.36,659.52,0.30325084]
[1748982975942,1.11226653,660.23,659.52,0.30325084]
[1748982976142,1.04786207,660.22,659.52,0.30325084]
[1748982976342,1.04786207,660.21,659.52,0.30325084]
[1748982976544,1.04786207,660.2,659.52,0.30325084]
[1748982976742,1.11226653,660.23,659.52,0.30325084]
[1748982976743,1.04786207,660.19,659.52,0.30325084]
[1748982976946,1.04786207,660.18,659.52,0.30325084]
[1748982977242,1.04786207,660.17,659.52,0.30325084]
[1748982977444,1.04786207,660.16,659.52,0.30325084]
[1748982977644,1.04786207,660.15,659.52,0.30325084]
[1748982977845,1.04810393,660.14,659.52,0.30325084]
[1748982978045,1.04810393,660.13,659.52,0.30325084]
[1748982978246,1.04810393,660.12,659.52,0.30325084]
[1748982978449,1.04810393,660.11,659.52,0.30325084]
[1748982978648,1.04810393,660.1,659.52,0.30325084]
[1748982978847,1.04810393,660.09,659.52,0.30325084]
[1748982979044,3.68209165,661.01,659.56,0.47834208]
[1748982979045,1.04810393,660.08,659.56,0.47834208]
[1748982979243,1.04810393,660.07,659.57,0.30322786]
[1748982979445,1.04810393,660.06,659.57,0.30322786]
[1748982979746,1.04810393,660.05,659.57,0.30322786]
[1748982979943,1.04810393,660.04,659.57,0.30322786]
[1748982980150,1.04810393,660.03,659.57,0.30322786]
[1748982980351,1.04810393,660.02,659.57,0.30322786]
[1748982980548,1.112502,660.23,659.57,0.30322786]
[1748982980549,1.04810393,660.01,659.57,0.30322786]
[1748982980749,1.04810393,660.0,659.57,0.30322786]
[1748982980951,1.04810393,659.99,659.57,0.30322786]
[1748982981252,1.112502,660.39,659.57,0.30322786]
[1748982981447,1.0483179,660.38,659.57,0.30322786]
[1748982981647,1.0485178,660.37,659.57,0.30322786]
[1748982981950,3.68209165,661.41,659.57,0.30322786]
[1748982981951,1.0485178,660.36,659.57,0.30322786]
[1748982982149,1.0485178,660.35,659.57,0.30322786]
[1748982982349,1.4814593,660.62,659.57,0.30322786]
[1748982982350,1.0485178,660.34,659.57,0.30322786]
[1748982982549,1.0485178,660.33,659.57,0.30322786]
[1748982982745,1.4814593,660.63,659.57,0.30322786]
[1748982982746,1.0485178,660.32,659.57,0.30322786]
[1748982982946,1.0485178,660.31,659.57,0.30322786]
[1748982983146,1.0485178,660.3,659.57,0.30322786]
[1748982983348,1.11318248,660.47,659.57,0.30322786]
[1748982983349,1.0485178,660.29,659.57,0.30322786]
[1748982983548,1.0485178,660.28,659.57,0.30322786]
[1748982983752,1.0485178,660.27,659.57,0.30322786]
[1748982984052,1.0485178,660.26,659.57,0.30322786]
[1748982984253,1.0485178,660.25,659.57,0.30322786]
[1748982984444,1.0485178,660.24,659.57,0.30322786]
[1748982984647,1.0485178,660.23,659.57,0.30322786]
[1748982984848,1.0485178,660.22,659.57,0.30322786]
[1748982985052,1.0485178,660.21,659.57,0.30322786]
[1748982985251,1.11318248,660.39,659.57,0.30322786]
[1748982985252,1.0485178,660.2,659.57,0.30322786]
[1748982985449,1.0485178,660.19,659.57,0.30322786]
[1748982985754,1.0485178,660.18,659.57,0.30322786]
[1748982985955,1.0485178,660.17,659.57,0.30322786]
[1748982986151,1.0485178,660.16,659.57,0.30322786]
[1748982986357,1.0485178,660.15,659.57,0.30322786]
[1748982986557,1.11318248,660.4,659.57,0.30322786]
[1748982986755,1.04621365,660.39,659.57,0.30322786]
[1748982986955,1.04621365,660.38,659.57,0.30322786]
[1748982987156,1.04621365,660.37,659.57,0.30322786]
[1748982987357,1.04621365,660.36,659.57,0.30322786]
[1748982987554,1.04621365,660.35,659.57,0.30322786]
[1748982987758,1.04621365,660.34,659.57,0.30322786]
[1748982987958,1.04621365,660.33,659.57,0.30322786]
[1748982988153,1.04621365,660.32,659.57,0.30322786]
[1748982988352,1.04621365,660.31,659.57,0.30322786]
[1748982988553,1.04621365,660.3,659.57,0.30322786]
[1748982988753,1.04621365,660.29,659.57,0.30322786]
[1748982988958,1.04621365,660.28,659.57,0.30322786]
[1748982989255,1.4814593,660.55,659.57,0.30322786]
[1748982989460,1.11218658,660.41,659.57,0.30322786]
[1748982989659,1.04713379,660.4,659.57,0.30322786]
[1748982989863,1.04713379,660.39,659.57,0.30322786]
[1748982990056,1.04713379,660.38,659.57,0.30322786]
[1748982990255,1.04713379,660.37,659.57,0.30322786]
[1748982990559,1.04713379,660.36,659.57,0.30322786]
[1748982990759,1.04713379,660.35,659.57,0.30322786]
[1748982990961,1.04713379,660.34,659.57,0.30322786]
[1748982991161,1.04713379,660.33,659.57,0.30322786]
[1748982991461,1.04713379,660.32,659.57,0.30322786]
[1748982991662,1.04713379,660.31,659.57,0.30322786]
[1748982991861,1.04713379,660.3,659.57,0.30322786]
[1748982992063,1.04713379,660.29,659.57,0.30322786]
[1748982992259,1.04713379,660.28,659.57,0.78156994]
[1748982992455,1.04713379,660.27,659.57,0.30322786]
[1748982992660,1.04713379,660.26,659.57,0.30322786]
[1748982992857,1.04713379,660.25,659.57,0.30322786]
[1748982993058,1.04713379,660.24,659.57,0.30322786]
[1748982993363,1.04713379,660.23,659.57,0.30322786]
[1748982993565,1.04713379,660.22,659.57,0.30322786]
[1748982993769,1.04713379,660.21,659.57,0.30322786]
[1748982993973,1.04713379,660.2,659.57,0.30322786]
[1748982994172,1.04713379,660.19,659.58,0.47834208]
[1748982994365,1.11218658,660.37,659.59,0.78156074]
[1748982994366,1.04713379,660.18,659.59,0.78156074]
[1748982994566,1.11218658,660.39,659.61,0.47834208]
[1748982994772,1.04750022,660.38,659.62,0.30320487]
[1748982994972,1.04750022,660.37,659.62,0.30320487]
[1748982995170,1.04750022,660.36,659.62,0.30320487]
[1748982995371,1.04750022,660.35,659.62,0.30320487]
[1748982995573,1.04750022,660.34,659.62,0.30320487]
[1748982995872,1.04750022,660.33,659.62,0.30320487]
[1748982996174,1.04750022,660.32,659.64,0.47834208]
[1748982996374,1.04750022,660.31,659.67,0.47834208]
[1748982996673,1.11218658,660.38,659.67,0.47834208]
[1748982996674,1.04750022,660.3,659.68,0.30317729]
[1748982996866,1.04750022,660.29,659.68,0.30317729]
[1748982997070,1.04732434,660.28,659.68,0.78151937]
[1748982997270,1.04732434,660.27,659.68,0.78151937]
[1748982997570,1.04732434,660.26,659.68,0.78151937]
[1748982997771,1.04732434,660.25,659.69,0.47834208]
[1748982997972,1.04732434,660.24,659.7,0.3031681]
[1748982998171,1.04732434,660.23,659.7,0.3031681]
[1748982998471,1.04732434,660.22,659.7,0.78151018]
[1748982998672,1.04732434,660.21,659.71,0.47834208]
[1748982998868,1.11283777,660.39,659.72,0.30315891]
[1748982998869,1.04732434,660.2,659.72,0.30315891]
[1748982999067,1.11283777,660.39,659.72,0.30315891]
[1748982999269,1.04726733,660.38,659.72,0.30315891]
[1748982999467,1.04726733,660.37,659.72,0.30315891]
[1748982999672,1.04726733,660.36,659.72,0.78150099]
[1748982999871,1.04726733,660.35,659.73,0.47834208]
[1748983000070,1.04726733,660.34,659.74,0.30314972]
[1748983000269,1.04726733,660.33,659.74,0.30314972]
[1748983000469,1.04726733,660.32,659.74,0.30314972]
[1748983000664,1.04726733,660.31,659.74,0.30314972]
[1748983000866,1.04733662,660.3,659.74,0.30314972]
[1748983001173,1.04733662,660.29,659.74,0.7814918]
[1748983001368,1.04733662,660.28,659.75,0.47834208]
[1748983001577,1.04733662,660.27,659.76,0.30314053]
[1748983001873,1.11281191,660.41,659.76,0.78148261]
[1748983001874,1.04733662,660.26,659.76,0.78148261]
[1748983002068,1.04733662,660.25,659.76,0.78148261]
[1748983002267,1.04733662,660.24,659.76,0.78148261]
[1748983002468,1.11281191,660.42,659.76,0.30314053]
[1748983002469,1.04733662,660.23,659.76,0.30314053]
[1748983002672,1.04733662,660.22,659.76,0.30314053]
[1748983002871,1.04733662,660.21,659.76,0.30314053]
[1748983003175,3.68209165,661.11,659.76,0.30314053]
[1748983003176,1.11281191,660.46,659.76,0.30314053]
[1748983003367,1.04781821,660.45,659.76,0.30314053]
[1748983003571,1.04781821,660.44,659.76,0.30314053]
[1748983003773,1.04781821,660.43,659.76,0.30314053]
[1748983004071,3.68209165,661.19,659.76,0.78148261]
[1748983004072,1.04781821,660.42,659.76,0.78148261]
[1748983004270,1.04781821,660.41,659.76,0.78148261]
[1748983004471,1.04781821,660.4,659.76,0.78148261]
[1748983004674,1.0471197,660.39,659.77,0.47834208]
[1748983004869,1.0471197,660.38,659.78,0.30313134]
[1748983005072,1.0471197,660.37,659.78,0.30313134]
[1748983005270,1.0471197,660.36,659.78,0.30313134]
[1748983005471,1.0471197,660.35,659.78,0.30313134]
[1748983005781,1.0471197,660.34,659.78,0.30313134]
[1748983005973,1.0471197,660.33,659.78,0.30313134]
[1748983006174,1.0471197,660.32,659.78,0.30313134]
[1748983006476,1.0471197,660.31,659.78,0.30313134]
[1748983006671,1.11260267,660.5,659.78,0.30313134]
[1748983006672,1.0471197,660.3,659.78,0.30313134]
[1748983006876,1.0471197,660.29,659.78,0.30313134]
[1748983007077,1.0471197,660.28,659.78,0.30313134]
[1748983007276,1.0471197,660.27,659.78,0.30313134]
[1748983007470,1.11260267,660.49,659.78,0.30313134]
[1748983007674,1.04729014,660.48,659.78,0.30313134]
[1748983007874,1.04729014,660.47,659.78,0.30313134]
[1748983008072,1.04729014,660.46,659.78,0.30313134]
[1748983008275,1.04729014,660.45,659.78,0.30313134]
[1748983008473,1.4814593,660.62,659.78,0.30313134]
[1748983008676,1.11223623,660.5,659.78,0.30313134]
[1748983008873,1.04719623,660.49,659.78,0.30313134]
[1748983009073,1.04719623,660.48,659.78,0.30313134]
[1748983009375,1.04719623,660.47,659.78,0.30313134]
[1748983009571,1.04719623,660.46,659.78,0.30313134]
[1748983009777,1.04719623,660.45,659.81,0.47834208]
[1748983009972,1.04719623,660.44,659.82,0.30311297]
[1748983010173,1.04719623,660.43,659.82,0.78145505]
[1748983010373,1.04719623,660.42,659.82,0.78145505]
[1748983010579,1.04719623,660.41,659.82,0.30311297]
[1748983010773,1.04719623,660.4,659.82,0.30311297]
[1748983010976,1.04719623,660.39,659.82,0.30311297]
[1748983011177,1.04719623,660.38,659.82,0.30311297]
[1748983011376,1.04719623,660.37,659.82,0.30311297]
[1748983011576,1.04719623,660.36,659.82,0.30311297]
[1748983011775,1.04719623,660.35,659.82,0.30311297]
[1748983011978,1.04719623,660.34,659.82,0.30311297]
[1748983012174,1.04719623,660.33,659.82,0.30311297]
[1748983012380,1.04643125,660.32,659.82,0.30311297]
[1748983012581,1.04643125,660.31,659.82,0.30311297]
[1748983012783,1.04643125,660.3,659.82,0.30311297]
[1748983013081,1.11206602,660.5,659.82,0.30311297]
[1748983013082,1.04643125,660.29,659.82,0.30311297]
[1748983013278,1.04643125,660.28,659.82,0.30311297]
[1748983013480,1.04643125,660.27,659.82,0.30311297]
[1748983013781,3.68209165,661.27,659.82,0.30311297]
[1748983013782,1.04588553,660.26,659.82,0.30311297]
[1748983013981,1.11206602,660.55,659.82,0.30311297]
[1748983014280,1.04592117,660.54,659.82,0.30311297]
[1748983014478,1.04592117,660.53,659.82,0.30311297]
[1748983014684,1.04592117,660.52,659.82,0.30311297]
[1748983014983,1.04592117,660.51,659.82,0.30311297]
[1748983015182,1.04592117,660.5,659.82,0.30311297]
[1748983015383,1.04592117,660.49,659.82,0.30311297]